[Event "Titled Tuesday Blitz April 11 Early 2023"]
[White "Han, Yichen"]
[Black "Kohler, Aran"]
[WhiteFideId "1054430"]
[BlackFideId "1002856"]
[WhiteElo "2342"]
[BlackElo "2304"]
[Result "1-0"]
[Round "03"]
[TimeControl "180+2"]
[Date "2023.04.11"]
[WhiteClock "0:00:16"]
[BlackClock "0:00:41"]

1. Nf3 {[%clk 0:03:00]}  d6 {[%clk 0:02:55]} 2. d4 {[%clk 0:03:00]}  Bg4 {[%clk 0:02:55]} 3. e4 {[%clk 0:02:58]}  Nd7 {[%clk 0:02:49]} 4. Bc4 {[%clk 0:02:55]}  e6 {[%clk 0:02:48]} 5. Nc3 {[%clk 0:02:55]}  c6 {[%clk 0:02:43]} 6. Be2 {[%clk 0:02:46]}  Bxf3 {[%clk 0:02:38]} 7. Bxf3 {[%clk 0:02:43]}  e5 {[%clk 0:02:36]} 8. O-O {[%clk 0:02:31]}  Ngf6 {[%clk 0:02:33]} 9. Be3 {[%clk 0:02:26]}  Be7 {[%clk 0:02:32]} 10. Qd2 {[%clk 0:02:22]}  Qc7 {[%clk 0:02:32]} 11. d5 {[%clk 0:02:22]}  c5 {[%clk 0:02:28]} 12. Ne2 {[%clk 0:02:17]}  O-O {[%clk 0:02:25]} 13. Ng3 {[%clk 0:02:15]}  Rfe8 {[%clk 0:02:13]} 14. h4 {[%clk 0:02:13]}  Bf8 {[%clk 0:02:11]} 15. h5 {[%clk 0:02:13]}  b5 {[%clk 0:02:09]} 16. Nf5 {[%clk 0:02:06]}  Nb6 {[%clk 0:02:08]} 17. b3 {[%clk 0:02:06]}  Qd7 {[%clk 0:02:05]} 18. g4 {[%clk 0:02:05]}  g6 {[%clk 0:01:57]} 19. Bg5 {[%clk 0:01:48]}  gxf5 {[%clk 0:01:42]} 20. Bxf6 {[%clk 0:01:47]}  f4 {[%clk 0:01:43]} 21. Qe2 {[%clk 0:01:37]}  Be7 {[%clk 0:01:42]} 22. Bxe7 {[%clk 0:01:24]}  Qxe7 {[%clk 0:01:41]} 23. Qxb5 {[%clk 0:01:23]}  Rac8 {[%clk 0:01:32]} 24. a4 {[%clk 0:01:20]}  c4 {[%clk 0:01:23]} 25. a5 {[%clk 0:01:18]}  Nd7 {[%clk 0:01:21]} 26. b4 {[%clk 0:01:14]}  Rc7 {[%clk 0:01:05]} 27. Qa4 {[%clk 0:00:57]}  Rb8 {[%clk 0:00:58]} 28. c3 {[%clk 0:00:47]}  Qh4 {[%clk 0:00:57]} 29. Kg2 {[%clk 0:00:46]}  Qg5 {[%clk 0:00:57]} 30. b5 {[%clk 0:00:41]}  Nf6 {[%clk 0:00:55]} 31. Kh3 {[%clk 0:00:38]}  Kh8 {[%clk 0:00:54]} 32. b6 {[%clk 0:00:31]}  axb6 {[%clk 0:00:54]} 33. axb6 {[%clk 0:00:32]}  Rxb6 {[%clk 0:00:51]} 34. Qa8+ {[%clk 0:00:31]}  Kg7 {[%clk 0:00:52]} 35. Qd8 {[%clk 0:00:30]}  Rcb7 {[%clk 0:00:41]} 36. Ra8 {[%clk 0:00:22]}  Kh6 {[%clk 0:00:40]} 37. Qf8+ {[%clk 0:00:20]}  Qg7 {[%clk 0:00:41]} 38. g5+ {[%clk 0:00:16]} 1-0


[Site "https://www.chess.com"]

[Event "Titled Tuesday Blitz April 11 Early 2023"]
[White "Kozin, Yuri"]
[Black "Fajdetic, Hrvoje"]
[WhiteFideId "4129920"]
[BlackFideId "14501945"]
[WhiteElo "2555"]
[BlackElo "2185"]
[Result "1-0"]
[Round "03"]
[TimeControl "180+2"]
[Date "2023.04.11"]
[WhiteClock "0:00:29"]
[BlackClock "0:00:06"]

1. e4 {[%clk 0:03:00]}  e6 {[%clk 0:02:49]} 2. d4 {[%clk 0:03:00]}  d5 {[%clk 0:02:47]} 3. Nd2 {[%clk 0:03:01]}  dxe4 {[%clk 0:02:47]} 4. Nxe4 {[%clk 0:03:02]}  Nd7 {[%clk 0:02:48]} 5. Nf3 {[%clk 0:03:02]}  Ngf6 {[%clk 0:02:48]} 6. Nxf6+ {[%clk 0:03:02]}  Nxf6 {[%clk 0:02:49]} 7. c3 {[%clk 0:03:03]}  c5 {[%clk 0:02:49]} 8. Ne5 {[%clk 0:03:03]}  a6 {[%clk 0:02:48]} 9. Be3 {[%clk 0:02:25]}  Bd6 {[%clk 0:02:41]} 10. Qa4+ {[%clk 0:02:10]}  Bd7 {[%clk 0:02:34]} 11. Nxd7 {[%clk 0:02:07]}  Qxd7 {[%clk 0:02:34]} 12. Qxd7+ {[%clk 0:02:02]}  Nxd7 {[%clk 0:02:35]} 13. O-O-O {[%clk 0:02:02]}  Ke7 {[%clk 0:02:21]} 14. dxc5 {[%clk 0:01:52]}  Nxc5 {[%clk 0:02:22]} 15. Be2 {[%clk 0:01:47]}  Rac8 {[%clk 0:02:13]} 16. Bf3 {[%clk 0:01:47]}  b5 {[%clk 0:02:13]} 17. Kc2 {[%clk 0:01:30]}  a5 {[%clk 0:02:03]} 18. Rd2 {[%clk 0:01:28]}  Rhd8 {[%clk 0:01:43]} 19. Rhd1 {[%clk 0:01:27]}  Na4 {[%clk 0:01:23]} 20. Bb7 {[%clk 0:01:13]}  Rb8 {[%clk 0:00:41]} 21. Bc6 {[%clk 0:01:10]}  Nb6 {[%clk 0:00:10]} 22. Bxb5 {[%clk 0:01:07]}  Nd5 {[%clk 0:00:10]} 23. a4 {[%clk 0:00:55]}  Nxe3+ {[%clk 0:00:10]} 24. fxe3 {[%clk 0:00:55]}  Bxh2 {[%clk 0:00:10]} 25. Rh1 {[%clk 0:00:53]}  Rxd2+ {[%clk 0:00:09]} 26. Kxd2 {[%clk 0:00:54]}  Rd8+ {[%clk 0:00:09]} 27. Kc2 {[%clk 0:00:50]}  Be5 {[%clk 0:00:08]} 28. Rxh7 {[%clk 0:00:49]}  Bf6 {[%clk 0:00:08]} 29. Rh5 {[%clk 0:00:33]}  g6 {[%clk 0:00:07]} 30. Rc5 {[%clk 0:00:31]}  Bg5 {[%clk 0:00:07]} 31. Rxg5 {[%clk 0:00:31]}  Kf6 {[%clk 0:00:07]} 32. Rc5 {[%clk 0:00:30]}  Rd6 {[%clk 0:00:07]} 33. Bd3 {[%clk 0:00:29]}  e5 {[%clk 0:00:07]} 34. Rxa5 {[%clk 0:00:28]}  Ke6 {[%clk 0:00:06]} 35. b4 {[%clk 0:00:28]}  f5 {[%clk 0:00:06]} 36. Bc4+ {[%clk 0:00:28]}  Kf6 {[%clk 0:00:06]} 37. Ra6 {[%clk 0:00:28]}  Rxa6 {[%clk 0:00:06]} 38. Bxa6 {[%clk 0:00:29]} 1-0


[Site "https://www.chess.com"]

[Event "Titled Tuesday Blitz April 11 Early 2023"]
[White "Horak, Martin"]
[Black "La Villa Rivas, Marlon Javier"]
[WhiteFideId "367095"]
[BlackFideId "3519546"]
[WhiteElo "2091"]
[BlackElo "2135"]
[Result "0-1"]
[Round "03"]
[TimeControl "180+2"]
[Date "2023.04.11"]
[WhiteClock "0:00:40"]
[BlackClock "0:00:33"]

1. d4 {[%clk 0:03:00]}  Nf6 {[%clk 0:01:56]} 2. Nf3 {[%clk 0:02:59]}  e6 {[%clk 0:01:55]} 3. c4 {[%clk 0:02:59]}  b6 {[%clk 0:01:52]} 4. e3 {[%clk 0:02:55]}  Bb7 {[%clk 0:01:51]} 5. Bd3 {[%clk 0:02:54]}  Bb4+ {[%clk 0:01:49]} 6. Bd2 {[%clk 0:02:53]}  Qe7 {[%clk 0:01:49]} 7. O-O {[%clk 0:02:52]}  Bxd2 {[%clk 0:01:48]} 8. Nbxd2 {[%clk 0:02:51]}  O-O {[%clk 0:01:48]} 9. Qc2 {[%clk 0:02:51]}  h6 {[%clk 0:01:46]} 10. e4 {[%clk 0:02:48]}  d6 {[%clk 0:01:45]} 11. e5 {[%clk 0:02:43]}  dxe5 {[%clk 0:01:44]} 12. dxe5 {[%clk 0:02:42]}  Nfd7 {[%clk 0:01:43]} 13. Bh7+ {[%clk 0:02:22]}  Kh8 {[%clk 0:01:42]} 14. Be4 {[%clk 0:02:23]}  Nc6 {[%clk 0:01:38]} 15. Rfe1 {[%clk 0:02:07]}  Nc5 {[%clk 0:01:36]} 16. Bxc6 {[%clk 0:02:04]}  Bxc6 {[%clk 0:01:36]} 17. b4 {[%clk 0:02:00]}  Nd7 {[%clk 0:01:29]} 18. Nd4 {[%clk 0:01:57]}  Bb7 {[%clk 0:01:25]} 19. Rab1 {[%clk 0:01:41]}  c5 {[%clk 0:01:19]} 20. bxc5 {[%clk 0:01:29]}  Nxc5 {[%clk 0:01:16]} 21. Nb5 {[%clk 0:01:18]}  Rad8 {[%clk 0:01:13]} 22. Nb3 {[%clk 0:01:03]}  Nd3 {[%clk 0:01:10]} 23. Re3 {[%clk 0:00:57]}  Nf4 {[%clk 0:01:08]} 24. Rg3 {[%clk 0:00:50]}  Ng6 {[%clk 0:00:41]} 25. Re1 {[%clk 0:00:45]}  Qb4 {[%clk 0:00:34]} 26. Nd6 {[%clk 0:00:40]}  Qxe1# {[%clk 0:00:33]} 0-1


[Site "https://www.chess.com"]

[Event "Titled Tuesday Blitz April 11 Early 2023"]
[White "Bilan, Danila"]
[Black "Skaric, Djuro"]
[WhiteFideId "24161918"]
[BlackFideId "934569"]
[WhiteElo "2182"]
[BlackElo "2282"]
[Result "1-0"]
[Round "03"]
[TimeControl "180+2"]
[Date "2023.04.11"]
[WhiteClock "0:00:08"]
[BlackClock "0:00:39"]

1. d4 {[%clk 0:03:00]}  d6 {[%clk 0:03:00]} 2. Nf3 {[%clk 0:03:00]}  g6 {[%clk 0:03:01]} 3. Bg5 {[%clk 0:02:59]}  Bg7 {[%clk 0:03:01]} 4. c3 {[%clk 0:02:59]}  h6 {[%clk 0:03:00]} 5. Bh4 {[%clk 0:02:58]}  Nf6 {[%clk 0:03:01]} 6. Nbd2 {[%clk 0:02:58]}  O-O {[%clk 0:03:01]} 7. e4 {[%clk 0:02:58]}  Nc6 {[%clk 0:03:02]} 8. Qc2 {[%clk 0:02:58]}  e5 {[%clk 0:03:01]} 9. dxe5 {[%clk 0:02:58]}  dxe5 {[%clk 0:03:00]} 10. Bc4 {[%clk 0:02:58]}  Qe7 {[%clk 0:02:59]} 11. O-O {[%clk 0:02:55]}  g5 {[%clk 0:02:58]} 12. Bg3 {[%clk 0:02:54]}  Nh5 {[%clk 0:02:58]} 13. Rfe1 {[%clk 0:02:53]}  Nf4 {[%clk 0:02:58]} 14. Nf1 {[%clk 0:02:53]}  a6 {[%clk 0:02:57]} 15. Ne3 {[%clk 0:02:47]}  Be6 {[%clk 0:02:50]} 16. Rad1 {[%clk 0:02:38]}  Rad8 {[%clk 0:02:47]} 17. b4 {[%clk 0:02:02]}  Kh8 {[%clk 0:02:27]} 18. Nd5 {[%clk 0:01:44]}  Bxd5 {[%clk 0:02:20]} 19. exd5 {[%clk 0:01:39]}  Nb8 {[%clk 0:02:12]} 20. Bxf4 {[%clk 0:01:14]}  gxf4 {[%clk 0:02:12]} 21. Qf5 {[%clk 0:01:12]}  Nd7 {[%clk 0:01:57]} 22. Bd3 {[%clk 0:01:01]}  Nf6 {[%clk 0:01:57]} 23. Nxe5 {[%clk 0:00:47]}  Rxd5 {[%clk 0:01:54]} 24. c4 {[%clk 0:00:27]}  Rdd8 {[%clk 0:01:32]} 25. Nc6 {[%clk 0:00:12]}  Qd7 {[%clk 0:01:04]} 26. Nxd8 {[%clk 0:00:12]}  Rxd8 {[%clk 0:01:03]} 27. Bc2 {[%clk 0:00:12]}  Qc8 {[%clk 0:01:01]} 28. Qxc8 {[%clk 0:00:11]}  Rxc8 {[%clk 0:01:01]} 29. Re7 {[%clk 0:00:11]}  Kg8 {[%clk 0:00:52]} 30. Bf5 {[%clk 0:00:11]}  Rb8 {[%clk 0:00:50]} 31. Rxc7 {[%clk 0:00:09]}  Bf8 {[%clk 0:00:50]} 32. a3 {[%clk 0:00:08]}  a5 {[%clk 0:00:49]} 33. c5 {[%clk 0:00:08]}  axb4 {[%clk 0:00:50]} 34. axb4 {[%clk 0:00:09]}  b6 {[%clk 0:00:45]} 35. c6 {[%clk 0:00:09]}  Bxb4 {[%clk 0:00:44]} 36. Rb7 {[%clk 0:00:08]}  Re8 {[%clk 0:00:39]} 37. c7 {[%clk 0:00:08]}  Re5 {[%clk 0:00:39]} 38. c8=Q+ {[%clk 0:00:08]} 1-0


[Site "https://www.chess.com"]

[Event "Titled Tuesday Blitz April 11 Early 2023"]
[White "Sharapov, Evgeny"]
[Black "Chabris, Christopher"]
[WhiteFideId "14103133"]
[BlackFideId "2005263"]
[WhiteElo "2367"]
[BlackElo "2279"]
[Result "1-0"]
[Round "03"]
[TimeControl "180+2"]
[Date "2023.04.11"]
[WhiteClock "0:01:52"]
[BlackClock "0:00:10"]

1. e4 {[%clk 0:03:00]}  c5 {[%clk 0:02:59]} 2. Nf3 {[%clk 0:03:00]}  Nc6 {[%clk 0:02:59]} 3. d4 {[%clk 0:03:00]}  cxd4 {[%clk 0:02:59]} 4. Nxd4 {[%clk 0:03:00]}  e5 {[%clk 0:02:59]} 5. Nb5 {[%clk 0:02:59]}  d6 {[%clk 0:02:59]} 6. N1c3 {[%clk 0:02:59]}  a6 {[%clk 0:02:59]} 7. Na3 {[%clk 0:02:58]}  Be7 {[%clk 0:02:59]} 8. Nc4 {[%clk 0:02:57]}  b5 {[%clk 0:02:59]} 9. Ne3 {[%clk 0:02:57]}  Nf6 {[%clk 0:02:58]} 10. g3 {[%clk 0:02:56]}  h5 {[%clk 0:02:58]} 11. h3 {[%clk 0:02:56]}  h4 {[%clk 0:02:56]} 12. g4 {[%clk 0:02:56]}  O-O {[%clk 0:02:54]} 13. Bg2 {[%clk 0:02:56]}  Nd4 {[%clk 0:02:51]} 14. O-O {[%clk 0:02:53]}  Bb7 {[%clk 0:02:51]} 15. Ncd5 {[%clk 0:02:51]}  Nxd5 {[%clk 0:02:41]} 16. exd5 {[%clk 0:02:51]}  b4 {[%clk 0:02:35]} 17. a3 {[%clk 0:02:49]}  a5 {[%clk 0:02:24]} 18. axb4 {[%clk 0:02:48]}  axb4 {[%clk 0:02:23]} 19. Rxa8 {[%clk 0:02:48]}  Qxa8 {[%clk 0:02:22]} 20. Bd2 {[%clk 0:02:48]}  Qa4 {[%clk 0:01:58]} 21. c3 {[%clk 0:02:39]}  Qxd1 {[%clk 0:01:53]} 22. Rxd1 {[%clk 0:02:38]}  Ne2+ {[%clk 0:01:37]} 23. Kf1 {[%clk 0:02:22]}  bxc3 {[%clk 0:01:19]} 24. Kxe2 {[%clk 0:02:13]}  Ba6+ {[%clk 0:01:08]} 25. Ke1 {[%clk 0:02:11]}  cxd2+ {[%clk 0:00:58]} 26. Kxd2 {[%clk 0:02:11]}  Rb8 {[%clk 0:00:51]} 27. Rb1 {[%clk 0:02:08]}  Bg5 {[%clk 0:00:41]} 28. b4 {[%clk 0:02:03]}  g6 {[%clk 0:00:39]} 29. Be4 {[%clk 0:02:01]}  Bb5 {[%clk 0:00:31]} 30. Bd3 {[%clk 0:01:59]}  Kf8 {[%clk 0:00:18]} 31. Bxb5 {[%clk 0:01:58]}  Rxb5 {[%clk 0:00:18]} 32. Kd3 {[%clk 0:01:53]}  Bxe3 {[%clk 0:00:15]} 33. fxe3 {[%clk 0:01:53]}  Rxd5+ {[%clk 0:00:15]} 34. Kc4 {[%clk 0:01:54]}  Rd2 {[%clk 0:00:14]} 35. b5 {[%clk 0:01:54]}  d5+ {[%clk 0:00:12]} 36. Kc5 {[%clk 0:01:54]}  d4 {[%clk 0:00:10]} 37. b6 {[%clk 0:01:53]}  dxe3 {[%clk 0:00:09]} 38. b7 {[%clk 0:01:53]}  e2 {[%clk 0:00:09]} 39. b8=Q+ {[%clk 0:01:53]}  Kg7 {[%clk 0:00:10]} 40. Qxe5+ {[%clk 0:01:52]} 1-0


[Site "https://www.chess.com"]

[Event "Titled Tuesday Blitz April 11 Early 2023"]
[White "Demin, Vladimir"]
[Black "Levitan, Caleb Levi"]
[WhiteFideId "4167457"]
[BlackFideId "14332620"]
[WhiteElo "2548"]
[BlackElo "1963"]
[Result "1-0"]
[Round "03"]
[TimeControl "180+2"]
[Date "2023.04.11"]
[WhiteClock "0:00:08"]
[BlackClock "0:00:01"]

1. e4 {[%clk 0:03:00]}  e5 {[%clk 0:02:58]} 2. Nf3 {[%clk 0:02:59]}  Nc6 {[%clk 0:02:57]} 3. Nc3 {[%clk 0:02:59]}  Nf6 {[%clk 0:02:56]} 4. d4 {[%clk 0:02:59]}  exd4 {[%clk 0:02:50]} 5. Nxd4 {[%clk 0:03:00]}  Bb4 {[%clk 0:02:45]} 6. Nxc6 {[%clk 0:02:59]}  bxc6 {[%clk 0:02:40]} 7. Bd3 {[%clk 0:03:00]}  d5 {[%clk 0:02:28]} 8. exd5 {[%clk 0:02:59]}  cxd5 {[%clk 0:02:28]} 9. O-O {[%clk 0:02:59]}  O-O {[%clk 0:02:27]} 10. h3 {[%clk 0:02:59]}  h6 {[%clk 0:02:22]} 11. Qf3 {[%clk 0:02:56]}  Be6 {[%clk 0:02:12]} 12. Ne2 {[%clk 0:02:53]}  Qd7 {[%clk 0:01:58]} 13. Bxh6 {[%clk 0:02:33]}  Ne8 {[%clk 0:01:21]} 14. Be3 {[%clk 0:01:57]}  Bd6 {[%clk 0:01:12]} 15. Rad1 {[%clk 0:01:38]}  c5 {[%clk 0:01:08]} 16. c3 {[%clk 0:01:28]}  Rb8 {[%clk 0:01:03]} 17. b3 {[%clk 0:01:27]}  f5 {[%clk 0:00:39]} 18. Bf4 {[%clk 0:01:14]}  Nf6 {[%clk 0:00:21]} 19. Bxd6 {[%clk 0:01:04]}  Qxd6 {[%clk 0:00:21]} 20. Bxf5 {[%clk 0:00:40]}  Bxf5 {[%clk 0:00:20]} 21. Qxf5 {[%clk 0:00:39]}  Rbd8 {[%clk 0:00:20]} 22. Ng3 {[%clk 0:00:30]}  d4 {[%clk 0:00:11]} 23. cxd4 {[%clk 0:00:27]}  cxd4 {[%clk 0:00:12]} 24. Rd3 {[%clk 0:00:25]}  Nd5 {[%clk 0:00:07]} 25. Qg5 {[%clk 0:00:15]}  Nf4 {[%clk 0:00:04]} 26. Nf5 {[%clk 0:00:03]}  Rxf5 {[%clk 0:00:02]} 27. Qxf5 {[%clk 0:00:04]}  Rf8 {[%clk 0:00:02]} 28. Qe4 {[%clk 0:00:04]}  Nxd3 {[%clk 0:00:02]} 29. Qxd3 {[%clk 0:00:04]}  Qf4 {[%clk 0:00:01]} 30. f3 {[%clk 0:00:04]}  Qe3+ {[%clk 0:00:01]} 31. Qxe3 {[%clk 0:00:04]}  dxe3 {[%clk 0:00:02]} 32. Re1 {[%clk 0:00:05]}  Re8 {[%clk 0:00:03]} 33. Kf1 {[%clk 0:00:05]}  Kf7 {[%clk 0:00:03]} 34. Ke2 {[%clk 0:00:06]}  Kf6 {[%clk 0:00:03]} 35. Rc1 {[%clk 0:00:06]}  Re7 {[%clk 0:00:03]} 36. Rc4 {[%clk 0:00:06]}  Rd7 {[%clk 0:00:02]} 37. Kxe3 {[%clk 0:00:06]}  Re7+ {[%clk 0:00:03]} 38. Kf2 {[%clk 0:00:06]}  Rd7 {[%clk 0:00:03]} 39. Ra4 {[%clk 0:00:06]}  Ke5 {[%clk 0:00:02]} 40. Kg3 {[%clk 0:00:07]}  Kf5 {[%clk 0:00:02]} 41. h4 {[%clk 0:00:08]}  g6 {[%clk 0:00:02]} 42. Ra5+ {[%clk 0:00:08]}  Kf6 {[%clk 0:00:02]} 43. Kg4 {[%clk 0:00:09]}  Re7 {[%clk 0:00:02]} 44. f4 {[%clk 0:00:08]}  Rd7 {[%clk 0:00:03]} 45. g3 {[%clk 0:00:08]}  Rc7 {[%clk 0:00:02]} 46. Ra6+ {[%clk 0:00:08]}  Kg7 {[%clk 0:00:03]} 47. b4 {[%clk 0:00:09]}  Rb7 {[%clk 0:00:02]} 48. a3 {[%clk 0:00:09]}  Rc7 {[%clk 0:00:02]} 49. Kg5 {[%clk 0:00:08]}  Rd7 {[%clk 0:00:02]} 50. Rxg6+ {[%clk 0:00:08]}  Kf7 {[%clk 0:00:03]} 51. Ra6 {[%clk 0:00:07]}  Kg7 {[%clk 0:00:03]} 52. f5 {[%clk 0:00:07]}  Kf7 {[%clk 0:00:03]} 53. g4 {[%clk 0:00:08]}  Kg7 {[%clk 0:00:04]} 54. h5 {[%clk 0:00:08]}  Kh7 {[%clk 0:00:04]} 55. h6 {[%clk 0:00:08]}  Re7 {[%clk 0:00:03]} 56. Kh5 {[%clk 0:00:08]}  Rc7 {[%clk 0:00:03]} 57. g5 {[%clk 0:00:08]}  Re7 {[%clk 0:00:03]} 58. g6+ {[%clk 0:00:08]}  Kh8 {[%clk 0:00:03]} 59. Rc6 {[%clk 0:00:09]}  Re8 {[%clk 0:00:02]} 60. Kg5 {[%clk 0:00:09]}  Rd8 {[%clk 0:00:02]} 61. Rc7 {[%clk 0:00:09]}  Kg8 {[%clk 0:00:02]} 62. Rxa7 {[%clk 0:00:09]}  Kh8 {[%clk 0:00:02]} 63. b5 {[%clk 0:00:09]}  Kg8 {[%clk 0:00:02]} 64. b6 {[%clk 0:00:09]}  Kh8 {[%clk 0:00:03]} 65. a4 {[%clk 0:00:09]}  Rg8 {[%clk 0:00:02]} 66. a5 {[%clk 0:00:09]}  Rf8 {[%clk 0:00:02]} 67. a6 {[%clk 0:00:08]}  Re8 {[%clk 0:00:02]} 68. Rb7 {[%clk 0:00:08]}  Rg8 {[%clk 0:00:02]} 69. a7 {[%clk 0:00:08]}  Re8 {[%clk 0:00:03]} 70. Rb8 {[%clk 0:00:08]}  Rg8 {[%clk 0:00:01]} 71. Rxg8+ {[%clk 0:00:08]}  Kxg8 {[%clk 0:00:01]} 72. a8=Q# {[%clk 0:00:08]} 1-0


[Site "https://www.chess.com"]

[Event "Titled Tuesday Blitz April 11 Early 2023"]
[White "Kokoszczynski, Jan"]
[Black "babbilator"]
[WhiteFideId "1174460"]
[WhiteElo "2139"]
[BlackElo "2270"]
[Result "1-0"]
[Round "03"]
[TimeControl "180+2"]
[Date "2023.04.11"]
[WhiteClock "0:00:42"]
[BlackClock "0:00:03"]

1. d4 {[%clk 0:03:00]}  Nf6 {[%clk 0:02:59]} 2. c4 {[%clk 0:03:01]}  e6 {[%clk 0:02:59]} 3. Nc3 {[%clk 0:03:01]}  Bb4 {[%clk 0:02:59]} 4. f3 {[%clk 0:03:00]}  d5 {[%clk 0:02:55]} 5. a3 {[%clk 0:02:59]}  Be7 {[%clk 0:02:52]} 6. e4 {[%clk 0:02:51]}  dxe4 {[%clk 0:02:34]} 7. fxe4 {[%clk 0:02:52]}  c5 {[%clk 0:02:23]} 8. d5 {[%clk 0:02:52]}  exd5 {[%clk 0:02:21]} 9. exd5 {[%clk 0:02:53]}  Bd6 {[%clk 0:02:13]} 10. Nf3 {[%clk 0:02:52]}  O-O {[%clk 0:02:10]} 11. Be2 {[%clk 0:02:52]}  Nbd7 {[%clk 0:01:57]} 12. O-O {[%clk 0:02:51]}  h6 {[%clk 0:01:49]} 13. Nh4 {[%clk 0:02:06]}  Ne5 {[%clk 0:01:32]} 14. Nf5 {[%clk 0:02:03]}  Bxf5 {[%clk 0:00:48]} 15. Rxf5 {[%clk 0:02:04]}  a6 {[%clk 0:00:49]} 16. Qf1 {[%clk 0:02:02]}  Ned7 {[%clk 0:00:12]} 17. Bd3 {[%clk 0:01:57]}  Qc7 {[%clk 0:00:12]} 18. Bf4 {[%clk 0:01:47]}  Bxf4 {[%clk 0:00:12]} 19. Rxf4 {[%clk 0:01:48]}  Rae8 {[%clk 0:00:11]} 20. h3 {[%clk 0:01:26]}  Qe5 {[%clk 0:00:10]} 21. Qf2 {[%clk 0:01:18]}  Qe3 {[%clk 0:00:10]} 22. Rd1 {[%clk 0:01:12]}  Qxf2+ {[%clk 0:00:09]} 23. Kxf2 {[%clk 0:01:10]}  Re5 {[%clk 0:00:09]} 24. Be2 {[%clk 0:00:53]}  Rfe8 {[%clk 0:00:09]} 25. Bg4 {[%clk 0:00:53]}  Nf8 {[%clk 0:00:09]} 26. Bf5 {[%clk 0:00:50]}  Rd8 {[%clk 0:00:06]} 27. b4 {[%clk 0:00:44]}  b6 {[%clk 0:00:05]} 28. bxc5 {[%clk 0:00:44]}  bxc5 {[%clk 0:00:06]} 29. Rb1 {[%clk 0:00:41]}  g5 {[%clk 0:00:04]} 30. Rf3 {[%clk 0:00:41]}  Ng6 {[%clk 0:00:03]} 31. Bxg6 {[%clk 0:00:41]}  fxg6 {[%clk 0:00:03]} 32. Rxf6 {[%clk 0:00:42]} 1-0


[Site "https://www.chess.com"]

[Event "Titled Tuesday Blitz April 11 Early 2023"]
[White "De Souza, Cristiano Gomes"]
[Black "Gurevich, Dmitry"]
[WhiteFideId "2151758"]
[BlackFideId "2000407"]
[WhiteElo "2068"]
[BlackElo "2506"]
[Result "0-1"]
[Round "03"]
[TimeControl "180+2"]
[Date "2023.04.11"]
[WhiteClock "0:00:39"]
[BlackClock "0:01:00"]

1. d4 {[%clk 0:03:00]}  Nf6 {[%clk 0:02:59]} 2. c4 {[%clk 0:02:59]}  a6 {[%clk 0:02:59]} 3. Nf3 {[%clk 0:02:59]}  c5 {[%clk 0:02:59]} 4. d5 {[%clk 0:02:59]}  b5 {[%clk 0:02:58]} 5. cxb5 {[%clk 0:02:59]}  axb5 {[%clk 0:02:57]} 6. e4 {[%clk 0:02:52]}  Nxe4 {[%clk 0:02:57]} 7. Bd3 {[%clk 0:02:50]}  Nf6 {[%clk 0:02:48]} 8. Bxb5 {[%clk 0:02:47]}  g6 {[%clk 0:02:44]} 9. O-O {[%clk 0:02:45]}  Bg7 {[%clk 0:02:44]} 10. Nc3 {[%clk 0:02:46]}  O-O {[%clk 0:02:44]} 11. d6 {[%clk 0:02:45]}  Bb7 {[%clk 0:02:37]} 12. Re1 {[%clk 0:02:35]}  e6 {[%clk 0:02:35]} 13. Ne5 {[%clk 0:02:32]}  Qb6 {[%clk 0:02:29]} 14. a4 {[%clk 0:02:28]}  Nc6 {[%clk 0:02:28]} 15. Nc4 {[%clk 0:02:19]}  Qa7 {[%clk 0:02:23]} 16. Be3 {[%clk 0:02:16]}  Nd4 {[%clk 0:02:19]} 17. b4 {[%clk 0:02:10]}  Nd5 {[%clk 0:02:09]} 18. Nxd5 {[%clk 0:02:06]}  Bxd5 {[%clk 0:01:59]} 19. bxc5 {[%clk 0:02:03]}  Qxc5 {[%clk 0:01:56]} 20. Rc1 {[%clk 0:01:59]}  Qa7 {[%clk 0:01:34]} 21. a5 {[%clk 0:01:28]}  e5 {[%clk 0:01:33]} 22. Nb6 {[%clk 0:01:24]}  Qb7 {[%clk 0:01:30]} 23. Nxd5 {[%clk 0:01:11]}  Qxd5 {[%clk 0:01:29]} 24. Bxd7 {[%clk 0:01:06]}  Qxd6 {[%clk 0:01:29]} 25. Bxd4 {[%clk 0:01:05]}  exd4 {[%clk 0:01:24]} 26. Bc6 {[%clk 0:00:55]}  Rxa5 {[%clk 0:01:22]} 27. Bf3 {[%clk 0:00:52]}  d3 {[%clk 0:01:16]} 28. Re3 {[%clk 0:00:47]}  Ra3 {[%clk 0:01:07]} 29. Be4 {[%clk 0:00:41]}  Bh6 {[%clk 0:01:03]} 30. Rxd3 {[%clk 0:00:40]}  Rxd3 {[%clk 0:01:01]} 31. Bxd3 {[%clk 0:00:39]}  Bxc1 {[%clk 0:01:00]} 0-1


[Site "https://www.chess.com"]

[Event "Titled Tuesday Blitz April 11 Early 2023"]
[White "tetrix83"]
[Black "Necula, Iulian"]
[BlackFideId "1232380"]
[WhiteElo "2532"]
[BlackElo "1790"]
[Result "1/2-1/2"]
[Round "03"]
[TimeControl "180+2"]
[Date "2023.04.11"]
[WhiteClock "0:00:32"]
[BlackClock "0:00:24"]

1. e4 {[%clk 0:03:00]}  d6 {[%clk 0:03:00]} 2. d4 {[%clk 0:02:58]}  Nf6 {[%clk 0:03:01]} 3. Nc3 {[%clk 0:02:57]}  e5 {[%clk 0:03:02]} 4. Nf3 {[%clk 0:02:53]}  Nbd7 {[%clk 0:03:01]} 5. Bc4 {[%clk 0:02:42]}  Be7 {[%clk 0:03:00]} 6. O-O {[%clk 0:02:33]}  c6 {[%clk 0:03:00]} 7. a4 {[%clk 0:02:33]}  a5 {[%clk 0:03:00]} 8. Re1 {[%clk 0:02:29]}  Qc7 {[%clk 0:02:59]} 9. b3 {[%clk 0:02:28]}  h6 {[%clk 0:02:58]} 10. Nh4 {[%clk 0:02:20]}  exd4 {[%clk 0:02:39]} 11. Qxd4 {[%clk 0:02:12]}  Ne5 {[%clk 0:02:39]} 12. Nf5 {[%clk 0:02:09]}  Bxf5 {[%clk 0:02:28]} 13. exf5 {[%clk 0:02:09]}  Nxc4 {[%clk 0:02:22]} 14. Qxc4 {[%clk 0:02:05]}  O-O {[%clk 0:02:21]} 15. Bf4 {[%clk 0:02:05]}  Rfd8 {[%clk 0:02:11]} 16. Rad1 {[%clk 0:02:02]}  Rd7 {[%clk 0:02:02]} 17. Rxe7 {[%clk 0:01:57]}  Rxe7 {[%clk 0:02:01]} 18. Bxd6 {[%clk 0:01:57]}  Re1+ {[%clk 0:01:48]} 19. Rxe1 {[%clk 0:01:56]}  Qxd6 {[%clk 0:01:49]} 20. h3 {[%clk 0:01:51]}  Re8 {[%clk 0:01:39]} 21. Rxe8+ {[%clk 0:01:47]}  Nxe8 {[%clk 0:01:40]} 22. Ne4 {[%clk 0:01:43]}  Qd1+ {[%clk 0:01:39]} 23. Kh2 {[%clk 0:01:43]}  Nd6 {[%clk 0:01:37]} 24. Nxd6 {[%clk 0:01:36]}  Qxd6+ {[%clk 0:01:38]} 25. g3 {[%clk 0:01:36]}  Qd2 {[%clk 0:01:36]} 26. Kg2 {[%clk 0:01:35]}  h5 {[%clk 0:01:22]} 27. c3 {[%clk 0:01:33]}  Qd7 {[%clk 0:01:11]} 28. Qc5 {[%clk 0:01:24]}  h4 {[%clk 0:01:02]} 29. gxh4 {[%clk 0:01:19]}  Qd8 {[%clk 0:00:59]} 30. Qd4 {[%clk 0:01:16]}  Qe7 {[%clk 0:00:49]} 31. h5 {[%clk 0:01:07]}  Qg5+ {[%clk 0:00:45]} 32. Qg4 {[%clk 0:01:07]}  Qf6 {[%clk 0:00:40]} 33. c4 {[%clk 0:00:54]}  b6 {[%clk 0:00:38]} 34. h4 {[%clk 0:00:54]}  Kh7 {[%clk 0:00:33]} 35. Qg5 {[%clk 0:00:54]}  Qe5 {[%clk 0:00:29]} 36. Qg4 {[%clk 0:00:42]}  Qf6 {[%clk 0:00:28]} 37. Qe4 {[%clk 0:00:40]}  Kh6 {[%clk 0:00:24]} 38. Qg4 {[%clk 0:00:32]}  Kh7 {[%clk 0:00:24]} 1/2-1/2


[Site "https://www.chess.com"]